[Event "Titled Tuesday Blitz September 27 Late 2022"]
[White "Timmermans, Mark"]
[Black "Lazavik, Denis"]
[WhiteFideId "1026399"]
[BlackFideId "13515110"]
[WhiteElo "2460"]
[BlackElo "2437"]
[Result "1-0"]
[Round "03"]
[TimeControl "180+1"]
[Date "2022.09.27"]
[WhiteClock "0:00:28"]
[BlackClock "0:00:07"]

1. b4 {[%clk 0:03:00]}  e5 {[%clk 0:02:58]} 2. Bb2 {[%clk 0:02:59]}  Bxb4 {[%clk 0:02:58]} 3. Bxe5 {[%clk 0:02:59]}  Nf6 {[%clk 0:02:58]} 4. Nc3 {[%clk 0:02:59]}  Ba5 {[%clk 0:02:53]} 5. e3 {[%clk 0:02:58]}  Nc6 {[%clk 0:02:50]} 6. Bg3 {[%clk 0:02:58]}  O-O {[%clk 0:02:45]} 7. Nf3 {[%clk 0:02:56]}  d6 {[%clk 0:02:40]} 8. Bd3 {[%clk 0:02:54]}  Qe7 {[%clk 0:02:35]} 9. O-O {[%clk 0:02:53]}  Ne5 {[%clk 0:02:34]} 10. Ne4 {[%clk 0:02:32]}  Bg4 {[%clk 0:02:11]} 11. Nxf6+ {[%clk 0:02:27]}  Qxf6 {[%clk 0:02:11]} 12. Be2 {[%clk 0:02:23]}  Nxf3+ {[%clk 0:02:08]} 13. Bxf3 {[%clk 0:02:24]}  Bxf3 {[%clk 0:02:08]} 14. gxf3 {[%clk 0:02:25]}  Rfe8 {[%clk 0:02:04]} 15. c3 {[%clk 0:02:21]}  h5 {[%clk 0:02:02]} 16. h4 {[%clk 0:02:18]}  d5 {[%clk 0:01:55]} 17. Kg2 {[%clk 0:02:11]}  Bb6 {[%clk 0:01:50]} 18. a4 {[%clk 0:02:09]}  a5 {[%clk 0:01:50]} 19. d4 {[%clk 0:02:04]}  Re6 {[%clk 0:01:46]} 20. Qb3 {[%clk 0:01:58]}  Qf5 {[%clk 0:01:44]} 21. c4 {[%clk 0:01:52]}  Rf6 {[%clk 0:01:38]} 22. c5 {[%clk 0:01:50]}  Qxf3+ {[%clk 0:01:31]} 23. Kh2 {[%clk 0:01:49]}  Re8 {[%clk 0:00:48]} 24. cxb6 {[%clk 0:01:41]}  Rxb6 {[%clk 0:00:47]} 25. Qc2 {[%clk 0:01:41]}  Rc6 {[%clk 0:00:45]} 26. Qd1 {[%clk 0:01:39]}  Qf5 {[%clk 0:00:44]} 27. Rc1 {[%clk 0:01:36]}  Rxc1 {[%clk 0:00:38]} 28. Qxc1 {[%clk 0:01:37]}  c6 {[%clk 0:00:39]} 29. Qb1 {[%clk 0:01:31]}  Qd7 {[%clk 0:00:38]} 30. Rg1 {[%clk 0:01:26]}  Re4 {[%clk 0:00:37]} 31. Bf4 {[%clk 0:01:18]}  Qe7 {[%clk 0:00:33]} 32. Rg5 {[%clk 0:00:51]}  f6 {[%clk 0:00:32]} 33. Rg3 {[%clk 0:00:50]}  Qd7 {[%clk 0:00:25]} 34. Qd1 {[%clk 0:00:45]}  Qf7 {[%clk 0:00:24]} 35. Qd2 {[%clk 0:00:38]}  b6 {[%clk 0:00:16]} 36. Qb2 {[%clk 0:00:38]}  Qb7 {[%clk 0:00:16]} 37. Qe2 {[%clk 0:00:37]}  Qf7 {[%clk 0:00:10]} 38. Qa6 {[%clk 0:00:37]}  c5 {[%clk 0:00:11]} 39. dxc5 {[%clk 0:00:33]}  bxc5 {[%clk 0:00:11]} 40. Qxa5 {[%clk 0:00:33]}  d4 {[%clk 0:00:11]} 41. Qxc5 {[%clk 0:00:31]}  dxe3 {[%clk 0:00:12]} 42. fxe3 {[%clk 0:00:32]}  Rxa4 {[%clk 0:00:10]} 43. Qc8+ {[%clk 0:00:31]}  Qf8 {[%clk 0:00:10]} 44. Rxg7+ {[%clk 0:00:28]}  Kxg7 {[%clk 0:00:07]} 45. Bh6+ {[%clk 0:00:28]} 1-0


[Site "https://www.chess.com"]

[Event "Titled Tuesday Blitz September 27 Late 2022"]
[White "Tristan, Leonardo"]
[Black "Runets, Ivan"]
[WhiteFideId "113816"]
[BlackFideId "13511564"]
[WhiteElo "2404"]
[BlackElo "1962"]
[Result "1-0"]
[Round "03"]
[TimeControl "180+1"]
[Date "2022.09.28"]
[WhiteClock "0:00:20"]
[BlackClock "0:00:07"]

1. d4 {[%clk 0:03:00]}  Nf6 {[%clk 0:02:15]} 2. Nf3 {[%clk 0:03:01]}  e6 {[%clk 0:02:09]} 3. Bf4 {[%clk 0:03:01]}  b6 {[%clk 0:02:08]} 4. e3 {[%clk 0:03:01]}  Bb7 {[%clk 0:02:09]} 5. Nbd2 {[%clk 0:03:01]}  Be7 {[%clk 0:02:09]} 6. h3 {[%clk 0:03:02]}  d5 {[%clk 0:02:08]} 7. Bd3 {[%clk 0:03:02]}  O-O {[%clk 0:02:08]} 8. O-O {[%clk 0:03:02]}  Nbd7 {[%clk 0:02:09]} 9. Qe2 {[%clk 0:03:00]}  Ne4 {[%clk 0:02:09]} 10. Rfe1 {[%clk 0:03:00]}  Bd6 {[%clk 0:02:06]} 11. Rad1 {[%clk 0:02:57]}  h6 {[%clk 0:02:01]} 12. c3 {[%clk 0:02:52]}  Qe7 {[%clk 0:02:00]} 13. Ne5 {[%clk 0:02:29]}  Bxe5 {[%clk 0:01:55]} 14. dxe5 {[%clk 0:02:27]}  Nxd2 {[%clk 0:01:55]} 15. Rxd2 {[%clk 0:02:22]}  f6 {[%clk 0:01:40]} 16. exf6 {[%clk 0:02:19]}  Nxf6 {[%clk 0:01:40]} 17. Be5 {[%clk 0:02:11]}  Nd7 {[%clk 0:01:27]} 18. Bxc7 {[%clk 0:01:58]}  e5 {[%clk 0:01:26]} 19. f4 {[%clk 0:01:58]}  e4 {[%clk 0:01:25]} 20. Bb5 {[%clk 0:01:24]}  Nc5 {[%clk 0:01:23]} 21. Be5 {[%clk 0:01:23]}  a6 {[%clk 0:01:23]} 22. b4 {[%clk 0:01:14]}  axb5 {[%clk 0:01:13]} 23. bxc5 {[%clk 0:01:15]}  Qxc5 {[%clk 0:01:14]} 24. Bd4 {[%clk 0:01:15]}  Qc6 {[%clk 0:00:59]} 25. Rb1 {[%clk 0:01:03]}  Ra5 {[%clk 0:00:59]} 26. Qg4 {[%clk 0:01:02]}  Rf7 {[%clk 0:00:58]} 27. Rdb2 {[%clk 0:00:52]}  Bc8 {[%clk 0:00:43]} 28. Qh5 {[%clk 0:00:49]}  Rfa7 {[%clk 0:00:38]} 29. a4 {[%clk 0:00:34]}  Ba6 {[%clk 0:00:15]} 30. axb5 {[%clk 0:00:31]}  Rxb5 {[%clk 0:00:16]} 31. Rxb5 {[%clk 0:00:26]}  Bxb5 {[%clk 0:00:17]} 32. f5 {[%clk 0:00:27]}  Kh7 {[%clk 0:00:15]} 33. f6 {[%clk 0:00:26]}  gxf6 {[%clk 0:00:12]} 34. Qf5+ {[%clk 0:00:22]}  Kg7 {[%clk 0:00:12]} 35. Rxb5 {[%clk 0:00:22]}  Ra1+ {[%clk 0:00:04]} 36. Kh2 {[%clk 0:00:18]}  Qd6+ {[%clk 0:00:02]} 37. Qf4 {[%clk 0:00:19]}  Qxf4+ {[%clk 0:00:02]} 38. exf4 {[%clk 0:00:19]}  Re1 {[%clk 0:00:02]} 39. Rxb6 {[%clk 0:00:19]}  e3 {[%clk 0:00:02]} 40. Rxf6 {[%clk 0:00:15]}  e2 {[%clk 0:00:02]} 41. Re6+ {[%clk 0:00:15]}  Kf7 {[%clk 0:00:03]} 42. f5 {[%clk 0:00:16]}  h5 {[%clk 0:00:01]} 43. h4 {[%clk 0:00:16]}  Rf1 {[%clk 0:00:02]} 44. Rxe2 {[%clk 0:00:15]}  Rxf5 {[%clk 0:00:02]} 45. Rf2 {[%clk 0:00:16]}  Kg6 {[%clk 0:00:03]} 46. Rxf5 {[%clk 0:00:16]}  Kxf5 {[%clk 0:00:04]} 47. Kg3 {[%clk 0:00:16]}  Ke4 {[%clk 0:00:04]} 48. Kf2 {[%clk 0:00:16]}  Kf4 {[%clk 0:00:05]} 49. g3+ {[%clk 0:00:16]}  Kg4 {[%clk 0:00:05]} 50. Kg2 {[%clk 0:00:17]}  Kf5 {[%clk 0:00:05]} 51. Kf3 {[%clk 0:00:17]}  Kg6 {[%clk 0:00:05]} 52. g4 {[%clk 0:00:18]}  Kh6 {[%clk 0:00:06]} 53. g5+ {[%clk 0:00:17]}  Kg6 {[%clk 0:00:03]} 54. Kf4 {[%clk 0:00:18]}  Kh7 {[%clk 0:00:02]} 55. Ke5 {[%clk 0:00:18]}  Kg8 {[%clk 0:00:03]} 56. Kxd5 {[%clk 0:00:19]}  Kh7 {[%clk 0:00:04]} 57. c4 {[%clk 0:00:19]}  Kg6 {[%clk 0:00:05]} 58. Ke6 {[%clk 0:00:18]}  Kh7 {[%clk 0:00:04]} 59. c5 {[%clk 0:00:19]}  Kg6 {[%clk 0:00:05]} 60. c6 {[%clk 0:00:19]}  Kh7 {[%clk 0:00:06]} 61. c7 {[%clk 0:00:20]}  Kg6 {[%clk 0:00:06]} 62. c8=Q {[%clk 0:00:20]}  Kh7 {[%clk 0:00:07]} 63. Qd7+ {[%clk 0:00:21]}  Kg8 {[%clk 0:00:07]} 64. Qg7# {[%clk 0:00:20]} 1-0


[Site "https://www.chess.com"]

[Event "Titled Tuesday Blitz September 27 Late 2022"]
[White "Urbina Perez, Juan Antonio"]
[Black "Priasmoro, Novendra"]
[WhiteFideId "2217368"]
[BlackFideId "7105029"]
[WhiteElo "2197"]
[BlackElo "2309"]
[Result "1/2-1/2"]
[Round "03"]
[TimeControl "180+1"]
[Date "2022.09.28"]
[WhiteClock "0:00:20"]
[BlackClock "0:00:15"]

1. d4 {[%clk 0:03:00]}  Nf6 {[%clk 0:02:59]} 2. c4 {[%clk 0:02:52]}  e6 {[%clk 0:02:59]} 3. Nf3 {[%clk 0:02:50]}  d5 {[%clk 0:02:58]} 4. g3 {[%clk 0:02:47]}  c5 {[%clk 0:02:57]} 5. cxd5 {[%clk 0:02:46]}  exd5 {[%clk 0:02:57]} 6. Bg2 {[%clk 0:02:47]}  Nc6 {[%clk 0:02:57]} 7. O-O {[%clk 0:02:48]}  cxd4 {[%clk 0:02:57]} 8. Nxd4 {[%clk 0:02:47]}  Bc5 {[%clk 0:02:58]} 9. Nxc6 {[%clk 0:02:42]}  bxc6 {[%clk 0:02:58]} 10. Nc3 {[%clk 0:02:41]}  O-O {[%clk 0:02:57]} 11. e4 {[%clk 0:02:40]}  Ba6 {[%clk 0:02:45]} 12. Re1 {[%clk 0:02:33]}  d4 {[%clk 0:02:40]} 13. Na4 {[%clk 0:02:31]}  Bb4 {[%clk 0:02:37]} 14. Bd2 {[%clk 0:02:30]}  Qa5 {[%clk 0:02:34]} 15. Bxb4 {[%clk 0:02:22]}  Qxb4 {[%clk 0:02:35]} 16. a3 {[%clk 0:02:14]}  Qa5 {[%clk 0:02:17]} 17. b4 {[%clk 0:02:13]}  Qb5 {[%clk 0:02:10]} 18. Nc5 {[%clk 0:02:11]}  Rfd8 {[%clk 0:02:07]} 19. Rc1 {[%clk 0:02:09]}  d3 {[%clk 0:02:03]} 20. Qd2 {[%clk 0:02:08]}  Ng4 {[%clk 0:02:01]} 21. Rc3 {[%clk 0:01:57]}  Ne5 {[%clk 0:01:59]} 22. Rd1 {[%clk 0:01:52]}  Rd4 {[%clk 0:01:56]} 23. f4 {[%clk 0:01:36]}  Nc4 {[%clk 0:01:54]} 24. Qf2 {[%clk 0:01:30]}  Rad8 {[%clk 0:01:52]} 25. e5 {[%clk 0:01:18]}  h5 {[%clk 0:01:41]} 26. Bf1 {[%clk 0:01:15]}  Bc8 {[%clk 0:01:24]} 27. Rcxd3 {[%clk 0:01:11]}  Rxd3 {[%clk 0:01:14]} 28. Rxd3 {[%clk 0:01:11]}  Rxd3 {[%clk 0:00:48]} 29. Bxd3 {[%clk 0:01:12]}  Be6 {[%clk 0:00:48]} 30. Nxe6 {[%clk 0:01:06]}  fxe6 {[%clk 0:00:49]} 31. Qe2 {[%clk 0:01:06]}  Qb6+ {[%clk 0:00:49]} 32. Kg2 {[%clk 0:01:03]}  Ne3+ {[%clk 0:00:49]} 33. Kh3 {[%clk 0:00:59]}  Ng4 {[%clk 0:00:49]} 34. Bc4 {[%clk 0:00:53]}  Kf7 {[%clk 0:00:34]} 35. f5 {[%clk 0:00:48]}  Qd4 {[%clk 0:00:33]} 36. Bxe6+ {[%clk 0:00:46]}  Ke7 {[%clk 0:00:34]} 37. Qc4 {[%clk 0:00:33]}  Qxc4 {[%clk 0:00:23]} 38. Bxc4 {[%clk 0:00:34]}  Nxe5 {[%clk 0:00:23]} 39. Be2 {[%clk 0:00:33]}  Kf6 {[%clk 0:00:23]} 40. Bxh5 {[%clk 0:00:29]}  Kxf5 {[%clk 0:00:23]} 41. Be2 {[%clk 0:00:29]}  Ke4 {[%clk 0:00:17]} 42. Kg2 {[%clk 0:00:28]}  Ke3 {[%clk 0:00:17]} 43. Ba6 {[%clk 0:00:25]}  g5 {[%clk 0:00:09]} 44. a4 {[%clk 0:00:25]}  Kd4 {[%clk 0:00:07]} 45. b5 {[%clk 0:00:25]}  cxb5 {[%clk 0:00:05]} 46. Bxb5 {[%clk 0:00:24]}  g4 {[%clk 0:00:04]} 47. h3 {[%clk 0:00:21]}  gxh3+ {[%clk 0:00:05]} 48. Kxh3 {[%clk 0:00:22]}  Ke4 {[%clk 0:00:06]} 49. g4 {[%clk 0:00:20]}  Kf4 {[%clk 0:00:06]} 50. Kh4 {[%clk 0:00:18]}  Nxg4 {[%clk 0:00:06]} 51. Kh3 {[%clk 0:00:16]}  Ne5 {[%clk 0:00:06]} 52. Kg2 {[%clk 0:00:15]}  Ke3 {[%clk 0:00:07]} 53. Kf1 {[%clk 0:00:15]}  Kd2 {[%clk 0:00:07]} 54. Kf2 {[%clk 0:00:15]}  a5 {[%clk 0:00:08]} 55. Kg3 {[%clk 0:00:15]}  Ke3 {[%clk 0:00:08]} 56. Kg2 {[%clk 0:00:15]}  Kd4 {[%clk 0:00:08]} 57. Kf2 {[%clk 0:00:15]}  Kc3 {[%clk 0:00:09]} 58. Ke2 {[%clk 0:00:15]}  Kc2 {[%clk 0:00:09]} 59. Ke1 {[%clk 0:00:15]}  Nf7 {[%clk 0:00:09]} 60. Ke2 {[%clk 0:00:15]}  Nd6 {[%clk 0:00:10]} 61. Ke1 {[%clk 0:00:15]}  Kc3 {[%clk 0:00:06]} 62. Kd1 {[%clk 0:00:14]}  Kb4 {[%clk 0:00:06]} 63. Kc1 {[%clk 0:00:15]}  Ne4 {[%clk 0:00:06]} 64. Kc2 {[%clk 0:00:15]}  Nc3 {[%clk 0:00:07]} 65. Kb2 {[%clk 0:00:15]}  Nd5 {[%clk 0:00:07]} 66. Kc2 {[%clk 0:00:15]}  Nb6 {[%clk 0:00:08]} 67. Kb2 {[%clk 0:00:15]}  Nxa4+ {[%clk 0:00:09]} 68. Bxa4 {[%clk 0:00:15]}  Kxa4 {[%clk 0:00:10]} 69. Ka2 {[%clk 0:00:15]}  Kb4 {[%clk 0:00:10]} 70. Ka1 {[%clk 0:00:16]}  a4 {[%clk 0:00:11]} 71. Kb1 {[%clk 0:00:17]}  a3 {[%clk 0:00:12]} 72. Ka1 {[%clk 0:00:18]}  Kb3 {[%clk 0:00:13]} 73. Kb1 {[%clk 0:00:19]}  a2+ {[%clk 0:00:14]} 74. Ka1 {[%clk 0:00:20]}  Ka3 {[%clk 0:00:15]} 1/2-1/2


[Site "https://www.chess.com"]

[Event "Titled Tuesday Blitz September 27 Late 2022"]
[White "Yurovskykh, Oleksandr"]
[Black "Sam, Gabriel"]
[WhiteFideId "14134020"]
[BlackFideId "75000776"]
[WhiteElo "2303"]
[BlackElo "2447"]
[Result "1/2-1/2"]
[Round "03"]
[TimeControl "180+1"]
[Date "2022.09.28"]
[WhiteClock "0:00:06"]
[BlackClock "0:00:03"]

1. d4 {[%clk 0:03:00]}  Nf6 {[%clk 0:02:59]} 2. Nf3 {[%clk 0:02:59]}  e6 {[%clk 0:02:59]} 3. Bf4 {[%clk 0:02:59]}  c5 {[%clk 0:02:55]} 4. c3 {[%clk 0:02:59]}  Nc6 {[%clk 0:02:55]} 5. e3 {[%clk 0:03:00]}  a6 {[%clk 0:02:53]} 6. Nbd2 {[%clk 0:03:00]}  d5 {[%clk 0:02:46]} 7. Bd3 {[%clk 0:02:59]}  Bd6 {[%clk 0:02:43]} 8. Bg3 {[%clk 0:02:58]}  O-O {[%clk 0:02:41]} 9. Qe2 {[%clk 0:02:56]}  Qe7 {[%clk 0:02:39]} 10. Ne5 {[%clk 0:02:55]}  Nd7 {[%clk 0:02:28]} 11. Nxd7 {[%clk 0:02:34]}  Bxd7 {[%clk 0:02:27]} 12. Bxd6 {[%clk 0:02:31]}  Qxd6 {[%clk 0:02:28]} 13. dxc5 {[%clk 0:02:31]}  Qxc5 {[%clk 0:02:20]} 14. Bxh7+ {[%clk 0:02:29]}  Kxh7 {[%clk 0:01:57]} 15. Qh5+ {[%clk 0:02:28]}  Kg8 {[%clk 0:01:58]} 16. Ne4 {[%clk 0:02:25]}  g6 {[%clk 0:01:18]} 17. Nxc5 {[%clk 0:02:17]}  gxh5 {[%clk 0:01:18]} 18. Nxd7 {[%clk 0:02:17]}  Rfc8 {[%clk 0:01:11]} 19. Nb6 {[%clk 0:02:15]}  Rd8 {[%clk 0:01:09]} 20. Nxa8 {[%clk 0:02:15]}  Rxa8 {[%clk 0:01:10]} 21. Ke2 {[%clk 0:02:15]}  b5 {[%clk 0:01:07]} 22. Rac1 {[%clk 0:02:14]}  Rb8 {[%clk 0:01:07]} 23. Rhd1 {[%clk 0:02:14]}  a5 {[%clk 0:01:07]} 24. h4 {[%clk 0:02:13]}  Ne5 {[%clk 0:01:07]} 25. b3 {[%clk 0:02:12]}  a4 {[%clk 0:01:07]} 26. Rd4 {[%clk 0:02:11]}  axb3 {[%clk 0:01:03]} 27. axb3 {[%clk 0:02:11]}  Ra8 {[%clk 0:01:03]} 28. Rc2 {[%clk 0:02:11]}  Nc6 {[%clk 0:00:58]} 29. Rd1 {[%clk 0:02:10]}  Ra3 {[%clk 0:00:59]} 30. Rb1 {[%clk 0:02:09]}  Na5 {[%clk 0:00:56]} 31. Rcb2 {[%clk 0:02:10]}  Kg7 {[%clk 0:00:56]} 32. Kd3 {[%clk 0:02:08]}  Kf6 {[%clk 0:00:56]} 33. Kd4 {[%clk 0:02:06]}  Nb7 {[%clk 0:00:55]} 34. f3 {[%clk 0:02:04]}  Ke7 {[%clk 0:00:53]} 35. g4 {[%clk 0:02:04]}  Kd6 {[%clk 0:00:51]} 36. Kd3 {[%clk 0:01:55]}  Nc5+ {[%clk 0:00:49]} 37. Kc2 {[%clk 0:01:55]}  Ra8 {[%clk 0:00:48]} 38. Rg1 {[%clk 0:01:46]}  Rh8 {[%clk 0:00:42]} 39. g5 {[%clk 0:01:43]}  Nd7 {[%clk 0:00:39]} 40. Ra2 {[%clk 0:01:41]}  Ne5 {[%clk 0:00:36]} 41. f4 {[%clk 0:01:41]}  Ng4 {[%clk 0:00:35]} 42. Kd2 {[%clk 0:01:35]}  Rb8 {[%clk 0:00:28]} 43. b4 {[%clk 0:01:35]}  Nf2 {[%clk 0:00:26]} 44. Ra7 {[%clk 0:01:23]}  Rc8 {[%clk 0:00:16]} 45. Rc1 {[%clk 0:01:18]}  Ne4+ {[%clk 0:00:15]} 46. Kd3 {[%clk 0:01:18]}  Nf2+ {[%clk 0:00:13]} 47. Ke2 {[%clk 0:01:19]}  Ne4 {[%clk 0:00:11]} 48. Ra3 {[%clk 0:01:18]}  e5 {[%clk 0:00:10]} 49. fxe5+ {[%clk 0:01:05]}  Kxe5 {[%clk 0:00:11]} 50. Rc2 {[%clk 0:01:06]}  Kf5 {[%clk 0:00:09]} 51. Kd3 {[%clk 0:01:06]}  Kg4 {[%clk 0:00:09]} 52. Ra7 {[%clk 0:01:04]}  Kxh4 {[%clk 0:00:08]} 53. Rxf7 {[%clk 0:01:04]}  Kxg5 {[%clk 0:00:08]} 54. Rf4 {[%clk 0:00:59]}  h4 {[%clk 0:00:06]} 55. Rg2+ {[%clk 0:00:59]}  Ng3 {[%clk 0:00:07]} 56. Rd4 {[%clk 0:00:52]}  Rd8 {[%clk 0:00:05]} 57. Rh2 {[%clk 0:00:42]}  Nf5 {[%clk 0:00:04]} 58. Rf4 {[%clk 0:00:39]}  Re8 {[%clk 0:00:02]} 59. Rg2+ {[%clk 0:00:39]}  Kf6 {[%clk 0:00:03]} 60. Rgf2 {[%clk 0:00:24]}  Ke5 {[%clk 0:00:03]} 61. Kd2 {[%clk 0:00:25]}  Nd6 {[%clk 0:00:03]} 62. Kd3 {[%clk 0:00:20]}  Ne4 {[%clk 0:00:03]} 63. Rg2 {[%clk 0:00:15]}  Rc8 {[%clk 0:00:03]} 64. Rc2 {[%clk 0:00:12]}  h3 {[%clk 0:00:03]} 65. Rh4 {[%clk 0:00:13]}  Ng5 {[%clk 0:00:02]} 66. Rh5 {[%clk 0:00:13]}  Kf5 {[%clk 0:00:02]} 67. Rf2+ {[%clk 0:00:13]}  Kg6 {[%clk 0:00:02]} 68. Rh4 {[%clk 0:00:12]}  Rc4 {[%clk 0:00:02]} 69. Rxc4 {[%clk 0:00:11]}  bxc4+ {[%clk 0:00:02]} 70. Kd4 {[%clk 0:00:09]}  h2 {[%clk 0:00:03]} 71. Rf1 {[%clk 0:00:09]}  Nf3+ {[%clk 0:00:02]} 72. Rxf3 {[%clk 0:00:02]}  h1=Q {[%clk 0:00:03]} 73. Rf4 {[%clk 0:00:02]}  Qd1+ {[%clk 0:00:02]} 74. Kc5 {[%clk 0:00:03]}  Qd2 {[%clk 0:00:03]} 75. Rd4 {[%clk 0:00:03]}  Qxc3 {[%clk 0:00:03]} 76. Kxd5 {[%clk 0:00:03]}  Qxe3 {[%clk 0:00:02]} 77. Kxc4 {[%clk 0:00:03]}  Kf5 {[%clk 0:00:03]} 78. Rd5+ {[%clk 0:00:03]}  Ke6 {[%clk 0:00:03]} 79. Rc5 {[%clk 0:00:04]}  Qc1+ {[%clk 0:00:03]} 80. Kb5 {[%clk 0:00:04]}  Qf1+ {[%clk 0:00:04]} 81. Kb6 {[%clk 0:00:04]}  Kd6 {[%clk 0:00:04]} 82. Rc6+ {[%clk 0:00:04]}  Kd7 {[%clk 0:00:05]} 83. Rc5 {[%clk 0:00:04]}  Qf4 {[%clk 0:00:04]} 84. Kb5 {[%clk 0:00:04]}  Qd4 {[%clk 0:00:03]} 85. Ka5 {[%clk 0:00:04]}  Kd6 {[%clk 0:00:03]} 86. Kb5 {[%clk 0:00:05]}  Qd3+ {[%clk 0:00:03]} 87. Ka5 {[%clk 0:00:04]}  Qa3+ {[%clk 0:00:03]} 88. Kb5 {[%clk 0:00:05]}  Qd3+ {[%clk 0:00:04]} 89. Ka5 {[%clk 0:00:05]}  Kd7 {[%clk 0:00:04]} 90. Kb6 {[%clk 0:00:05]}  Qb3 {[%clk 0:00:04]} 91. Kb5 {[%clk 0:00:06]}  Kd6 {[%clk 0:00:02]} 92. Ka5 {[%clk 0:00:06]}  Qa3+ {[%clk 0:00:02]} 93. Kb5 {[%clk 0:00:06]}  Qd3+ {[%clk 0:00:03]} 1/2-1/2


[Site "https://www.chess.com"]

[Event "Titled Tuesday Blitz September 27 Late 2022"]
[White "Adury, Anant"]
[Black "Ilkhomi, Jaloliddin"]
[WhiteFideId "30964687"]
[BlackFideId "14700948"]
[WhiteElo "2509"]
[BlackElo "1440"]
[Result "1/2-1/2"]
[Round "04"]
[TimeControl "180+1"]
[Date "2022.09.28"]
[WhiteClock "0:00:08"]
[BlackClock "0:00:11"]

1. Nf3 {[%clk 0:03:00]}  Nf6 {[%clk 0:02:57]} 2. d4 {[%clk 0:03:00]}  e6 {[%clk 0:02:57]} 3. c4 {[%clk 0:02:57]}  Bb4+ {[%clk 0:02:57]} 4. Nc3 {[%clk 0:02:57]}  O-O {[%clk 0:02:56]} 5. Bg5 {[%clk 0:02:49]}  d5 {[%clk 0:02:53]} 6. cxd5 {[%clk 0:02:47]}  exd5 {[%clk 0:02:50]} 7. e3 {[%clk 0:02:46]}  Bf5 {[%clk 0:02:48]} 8. Bd3 {[%clk 0:02:45]}  Bxd3 {[%clk 0:02:48]} 9. Qxd3 {[%clk 0:02:46]}  Be7 {[%clk 0:02:48]} 10. Ne5 {[%clk 0:02:45]}  Nbd7 {[%clk 0:02:43]} 11. Nxd7 {[%clk 0:02:38]}  Qxd7 {[%clk 0:02:43]} 12. O-O {[%clk 0:02:36]}  c6 {[%clk 0:02:40]} 13. Rae1 {[%clk 0:02:23]}  Ne4 {[%clk 0:02:40]} 14. Bxe7 {[%clk 0:02:19]}  Qxe7 {[%clk 0:02:38]} 15. Nxe4 {[%clk 0:02:19]}  dxe4 {[%clk 0:02:39]} 16. Qc3 {[%clk 0:02:17]}  Rad8 {[%clk 0:02:38]} 17. b4 {[%clk 0:02:15]}  Rd5 {[%clk 0:02:39]} 18. a4 {[%clk 0:02:14]}  Rfd8 {[%clk 0:02:34]} 19. Rb1 {[%clk 0:02:13]}  R8d6 {[%clk 0:02:28]} 20. Rfc1 {[%clk 0:02:12]}  Rg6 {[%clk 0:02:27]} 21. b5 {[%clk 0:02:11]}  Qg5 {[%clk 0:02:22]} 22. g3 {[%clk 0:02:11]}  h5 {[%clk 0:02:13]} 23. bxc6 {[%clk 0:02:10]}  bxc6 {[%clk 0:02:13]} 24. Rb8+ {[%clk 0:01:38]}  Kh7 {[%clk 0:02:12]} 25. Rc8 {[%clk 0:01:39]}  h4 {[%clk 0:01:02]} 26. Rxc6 {[%clk 0:01:16]}  h3 {[%clk 0:01:02]} 27. Rxg6 {[%clk 0:01:15]}  Qxg6 {[%clk 0:01:02]} 28. Qc6 {[%clk 0:00:38]}  Qf5 {[%clk 0:00:48]} 29. Qc8 {[%clk 0:00:34]}  Rd7 {[%clk 0:00:48]} 30. Kf1 {[%clk 0:00:26]}  Qg4 {[%clk 0:00:31]} 31. Ke1 {[%clk 0:00:24]}  Qe6 {[%clk 0:00:23]} 32. Qc6 {[%clk 0:00:23]}  Rd6 {[%clk 0:00:21]} 33. Qc8 {[%clk 0:00:23]}  Qh6 {[%clk 0:00:15]} 34. Qg4 {[%clk 0:00:21]}  Re6 {[%clk 0:00:10]} 35. Qf4 {[%clk 0:00:21]}  Qh5 {[%clk 0:00:09]} 36. d5 {[%clk 0:00:20]}  Qxd5 {[%clk 0:00:08]} 37. Rd1 {[%clk 0:00:20]}  Qa5+ {[%clk 0:00:08]} 38. Kf1 {[%clk 0:00:19]}  Qa6+ {[%clk 0:00:08]} 39. Kg1 {[%clk 0:00:19]}  Qxa4 {[%clk 0:00:09]} 40. Qh4+ {[%clk 0:00:19]}  Rh6 {[%clk 0:00:08]} 41. Qg4 {[%clk 0:00:16]}  Rg6 {[%clk 0:00:09]} 42. Qh4+ {[%clk 0:00:15]}  Rh6 {[%clk 0:00:09]} 43. Qg4 {[%clk 0:00:16]}  g6 {[%clk 0:00:10]} 44. Qd7 {[%clk 0:00:14]}  Qxd7 {[%clk 0:00:09]} 45. Rxd7 {[%clk 0:00:15]}  Rh5 {[%clk 0:00:10]} 46. Rxf7+ {[%clk 0:00:15]}  Kh6 {[%clk 0:00:09]} 47. Rxa7 {[%clk 0:00:15]}  Rc5 {[%clk 0:00:10]} 48. Ra1 {[%clk 0:00:16]}  Rc2 {[%clk 0:00:10]} 49. Re1 {[%clk 0:00:15]}  Kg5 {[%clk 0:00:10]} 50. Rf1 {[%clk 0:00:10]}  Kg4 {[%clk 0:00:10]} 51. f4 {[%clk 0:00:08]}  exf3 {[%clk 0:00:09]} 52. Rf2 {[%clk 0:00:08]}  Rc1+ {[%clk 0:00:08]} 53. Rf1 {[%clk 0:00:09]}  Rc2 {[%clk 0:00:08]} 54. Rf2 {[%clk 0:00:09]}  Rc3 {[%clk 0:00:09]} 55. e4 {[%clk 0:00:08]}  Re3 {[%clk 0:00:09]} 56. Rb2 {[%clk 0:00:08]}  Rxe4 {[%clk 0:00:08]} 57. Kf2 {[%clk 0:00:08]}  Rd4 {[%clk 0:00:06]} 58. Ra2 {[%clk 0:00:08]}  Rb4 {[%clk 0:00:05]} 59. Rc2 {[%clk 0:00:08]}  g5 {[%clk 0:00:06]} 60. Rd2 {[%clk 0:00:09]}  Rb3 {[%clk 0:00:06]} 61. Rd4+ {[%clk 0:00:09]}  Kf5 {[%clk 0:00:06]} 62. Rd2 {[%clk 0:00:08]}  g4 {[%clk 0:00:05]} 63. Ra2 {[%clk 0:00:08]}  Ke4 {[%clk 0:00:06]} 64. Ra4+ {[%clk 0:00:08]}  Kf5 {[%clk 0:00:06]} 65. Ra5+ {[%clk 0:00:07]}  Ke6 {[%clk 0:00:07]} 66. Ra6+ {[%clk 0:00:07]}  Kd5 {[%clk 0:00:08]} 67. Ra5+ {[%clk 0:00:07]}  Kc4 {[%clk 0:00:08]} 68. Ra4+ {[%clk 0:00:08]}  Rb4 {[%clk 0:00:09]} 69. Ra2 {[%clk 0:00:07]}  Kc3 {[%clk 0:00:09]} 70. Ra7 {[%clk 0:00:06]}  Rb2+ {[%clk 0:00:09]} 71. Kg1 {[%clk 0:00:06]}  Kd3 {[%clk 0:00:09]} 72. Rd7+ {[%clk 0:00:05]}  Ke2 {[%clk 0:00:10]} 73. Re7+ {[%clk 0:00:06]}  Kd1 {[%clk 0:00:10]} 74. Rd7+ {[%clk 0:00:06]}  Rd2 {[%clk 0:00:11]} 75. Rf7 {[%clk 0:00:06]}  Ke1 {[%clk 0:00:11]} 76. Re7+ {[%clk 0:00:06]}  Re2 {[%clk 0:00:12]} 77. Rf7 {[%clk 0:00:06]}  Rg2+ {[%clk 0:00:12]} 78. Kh1 {[%clk 0:00:07]}  Re2 {[%clk 0:00:12]} 79. Kg1 {[%clk 0:00:06]}  f2+ {[%clk 0:00:12]} 80. Kh1 {[%clk 0:00:06]}  Re3 {[%clk 0:00:12]} 81. Rxf2 {[%clk 0:00:05]}  Rxg3 {[%clk 0:00:12]} 82. Rf4 {[%clk 0:00:03]}  Rg2 {[%clk 0:00:05]} 83. Re4+ {[%clk 0:00:04]}  Kf1 {[%clk 0:00:04]} 84. Re1+ {[%clk 0:00:03]}  Kf2 {[%clk 0:00:04]} 85. Re2+ {[%clk 0:00:03]}  Kf3 {[%clk 0:00:04]} 86. Re3+ {[%clk 0:00:03]}  Kf4 {[%clk 0:00:04]} 87. Re4+ {[%clk 0:00:03]}  Kg5 {[%clk 0:00:05]} 88. Re5+ {[%clk 0:00:04]}  Kf6 {[%clk 0:00:05]} 89. Re6+ {[%clk 0:00:04]}  Kf5 {[%clk 0:00:06]} 90. Re5+ {[%clk 0:00:04]}  Kf4 {[%clk 0:00:06]} 91. Re4+ {[%clk 0:00:05]}  Kg5 {[%clk 0:00:07]} 92. Re5+ {[%clk 0:00:05]}  Kg6 {[%clk 0:00:08]} 93. Re6+ {[%clk 0:00:06]}  Kf7 {[%clk 0:00:09]} 94. Re7+ {[%clk 0:00:06]}  Kf6 {[%clk 0:00:09]} 95. Re6+ {[%clk 0:00:07]}  Kf5 {[%clk 0:00:10]} 96. Re5+ {[%clk 0:00:07]}  Kf4 {[%clk 0:00:11]} 97. Re4+ {[%clk 0:00:08]} 1/2-1/2


[Site "https://www.chess.com"]